Cogmind - Beta 15 @@@ ROGUE MODE // 2025.07.27 @ 22:18:50 Player: TacticsJustin Result: Self-destructed Performance ------------- Evolutions (1) 500 Regions Visited (2) 400 Robots Destroyed (18) 90 Value Destroyed (380) 380 Prototype IDs (0) 0 Alien Tech Used (0) 0 Bonus (0) 0 TOTAL SCORE: 1370 Bonus ------- None Cogmind --------- Core Integrity 246/400 Matter 220/300 Energy 0/100 System Corruption 0% Temperature Cool (0) Movement Core (150) Ox2 Location -9/Materials Parts ------- > --- POWER (1) -------- (None) > --- PROPULSION (3) --- (None) > --- UTILITY (3) ------ Small Storage Unit ECM Suite > --- WEAPON (2) ------- Light Assault Rifle Mini Grenade Launcher > --- INVENTORY (8) ---- Light Ion Engine Terrain Scanner Light Assault Rifle Peak State ------------ > --- POWER ------------ Light Ion Engine > --- PROPULSION ------- Aluminum Leg Aluminum Leg > --- UTILITY ---------- Small Storage Unit > --- WEAPON ----------- Medium Laser Small Laser > --- INVENTORY -------- (None) [Rating: 6] Favorites ----------- Power Light Ion Engine Engine Light Ion Engine Propulsion Aluminum Leg Leg Aluminum Leg Utility Small Storage Unit Device ECM Suite Storage Small Storage Unit Weapon Medium Laser Energy Gun Medium Laser Ballistic Gun Light Assault Rifle Launcher Mini Grenade Launcher Build | -11 -10 -9 ------- Run | Yrd Mat Mat Slots Evolved 2 | . . 2 Power . | . . . Propulsion 1 | . . 1 Utility 1 | . . 1 Weapon . | . . . Parts Attached 11 | 6 4 1 Power 3 | 1 2 . Engine 3 | 1 2 . Core . | . . . Reactor . | . . . Propulsion 2 | 2 . . Treads . | . . . Leg 2 | 2 . . Wheel . | . . . Hover . | . . . Flight . | . . . Utility 2 | 1 1 . Device 1 | . 1 . Storage 1 | 1 . . Processor . | . . . Hackware . | . . . Protection . | . . . Artifact . | . . . Weapon 4 | 2 1 1 Energy Gun 2 | 2 . . Energy Cannon . | . . . Ballistic Gun 1 | . 1 . Ballistic Cannon . | . . . Launcher 1 | . . 1 Special Weapon . | . . . Impact Weapon . | . . . Slashing Weapon . | . . . Piercing Weapon . | . . . Special Melee Weapon . | . . . Unidentified Prototypes . | . . . Parts Lost 6 | . 6 . Power 3 | . 3 . Propulsion 2 | . 2 . Utility . | . . . Weapon 1 | . 1 . Highest Loss Streak 3 | . 3 . To Critical Strikes . | . . . Average Backups 1 | . . 3 Power . | . . 1 Propulsion . | . . . Utility . | . . 1 Weapon . | . . 1 Tool/Special . | . . . Unused Backups 2 | . . 2 Power . | . . . Propulsion . | . . . Utility 1 | . . 1 Weapon 1 | . . 1 Tool/Special . | . . . Average Slot Usage (%) 56 | . 62 44 Engine 6 | . 9 . Leg 8 | . 13 . Device 5 | . 3 11 Storage 13 | . 14 11 Energy Gun 13 | . 19 2 Ballistic Gun 5 | . 3 11 Launcher 2 | . . 8 Peak Build Rating 6 | 6 6 5 Average Rating 4 | 4 4 4 On Entrance 3 | . 6 4 Naked Turns . | . . . Heaviest Build 13 | 11 13 10 Greatest Support 20 | 20 20 3 Greatest Overweight (x) 4 | . 4 3 Average Overweight (x) 1 | . 1 2 Largest Inventory Capacity 8 | 8 8 8 Average Capacity 7 | 7 8 8 Most Carried 5 | . 3 5 Average Carried 1 | . . 3 Final Capacity 8 | 8 8 8 Final Carried 3 | . 3 3 Class Distribution -------------------- 100% | Mutant Dominant Class ---------------- Mutant | -10/Materials Mutant | -9/Materials Resources | -11 -10 -9 ----------- Run | Yrd Mat Mat Matter Collected 326 | 187 139 . Remotely . | . . . Salvage Created 466 | . 334 132 Parts 36 | . 24 12 Haulers Intercepted . | . . . Recyclers Shooed 1 | . 1 . Parts Field Recycled . | . . . Retrieved Matter . | . . . Parts Self-Destructed . | . . . Prevented . | . . . Kills | -11 -10 -9 ------- Run | Yrd Mat Mat Combat Hostiles Destroyed 17 | . 10 7 Guns 11 | . 10 1 AOE 6 | . . 6 Classes Destroyed 3 | . 3 . Recycler 1 | . 1 . Swarmer 10 | . 6 4 Grunt 7 | . 4 3 Best Kill Streak 7 | . 5 7 Combat Bots Only 7 | . 4 7 Max Kills in Single Turn 3 | . 2 3 Gunslinging 1 | . 1 . Exploded 2 | . . 2 Melee . | . . . Uniques/NPCs Destroyed . | . . . Combat | -11 -10 -9 -------- Run | Yrd Mat Mat Hostile Shots Fired 153 | . 102 51 Missed 54 | . 32 22 Hits 99 | . 70 29 Projectile 99 | . 70 29 Damage Taken 1034 | . 715 319 Core 367 | . 213 154 Absorbed by Shields . | . . . Core Remaining (%) 57 | 100 14 . Volleys Fired 65 | . 45 20 Largest 2 | . 2 2 Hottest 90 | . 90 50 Shots Fired 92 | . 67 25 Gun 87 | . 67 20 Cannon . | . . . Launcher 5 | . . 5 Special . | . . . Kinetic 27 | . 7 20 Thermal 60 | . 60 . Explosive 5 | . . 5 Electromagnetic . | . . . Robot Hit Streak 8 | . 8 4 Robot Miss Streak 6 | . 4 6 Penetration Max . | . . . Secondary Targets 2 | . 2 . Max Gunslinging Chain 1 | . 1 . Shots Hit Robots 47 | . 38 9 Core Hits 30 | . 20 10 Critical Kills . | . . . Critical Parts Destroyed . | . . . Critical Strikes 2 | . 2 . Burn 2 | . 2 . Melee Attacks . | . . . Impact . | . . . Slashing . | . . . Piercing . | . . . Sneak Attacks . | . . . Combat Hostiles . | . . . Follow-up Attacks . | . . . Damage Inflicted 920 | . 511 409 Guns 586 | . 505 81 Cannons . | . . . Explosions 328 | . . 328 Melee . | . . . Ramming 6 | . 6 . Kinetic 114 | . 33 81 Thermal 472 | . 472 . Explosive 328 | . . 328 Electromagnetic . | . . . Impact . | . . . Slashing . | . . . Piercing . | . . . Highest Corruption . | . . . Average Corruption . | . . . Corruption Purged . | . . . Corruption Blocked . | . . . Overload Shots . | . . . Overflow Damage 2 | . . 2 Projectiles . | . . . Explosions 2 | . . 2 Melee . | . . . Knockbacks . | . . . Impact . | . . . Kinetic . | . . . Secondary . | . . . Self-Inflicted Damage 51 | . 3 48 Shots 1 | . . 1 Rammed 1 | . 1 . Targets Rammed 1 | . 1 . Kicked . | . . . Crushed . | . . . Highest Temperature 500 | . 500 15 Average Temperature 146 | . 150 9 Received Heat Transfer 258 | . 204 54 Effects 3 | . 3 . Matter Decay 2 | . 2 . Damage (core) 1 | . 1 . Siege Activations . | . . . Martial Activations . | . . . Shielding Activations . | . . . Robots Disrupted . | . . . Combat Hostiles . | . . . Robots Corrupted . | . . . Combat Hostiles . | . . . Parts Fried . | . . . Impact Corruptions . | . . . Robots Melted . | . . . Combat Hostiles . | . . . Parts Melted 1 | . 1 . Heat Transferred 1435 | . 1435 . Parts Sabotaged . | . . . Parts Stolen . | . . . Parts Stripped . | . . . Power Chain Reactions . | . . . Alert | -11 -10 -9 ------- Run | Yrd Mat Mat Maximum Alert Level . | . . . Low Security (%) 100 | 100 100 100 Level 1 . | . . . Level 2 . | . . . Level 3 . | . . . Level 4 . | . . . Level 5 . | . . . High Security . | . . . Max Security . | . . . Peak Influence 197 | . 60 197 Initial 16 | . . 16 Average 38 | . 21 83 Influence Increases 442 | . 235 207 Destroy 0b10 Robot/C 340 | . 200 140 Destroy 0b10 Robot/NC 5 | . 5 . Destroy Leader 50 | . 30 20 Disable Machine 15 | . . 15 Destroy Structure 32 | . . 32 Influence Decreases 285 | . 195 90 Entered New Map 24 | . . 24 Time Decay 201 | . 135 66 Lost Part 60 | . 60 . Squads Dispatched . | . . . Investigation . | . . . Extermination . | . . . Reinforcement . | . . . Assault . | . . . Garrison . | . . . Intercept . | . . . Searches Triggered . | . . . Construction Impeded . | . . . Haulers Reinforced . | . . . Active Scanning Responses . | . . . Cargo Convoy Interrupts . | . . . Stealth | -11 -10 -9 --------- Run | Yrd Mat Mat Distress Signals 2 | . 1 1 Communications Jammed . | . . . Distress Signals . | . . . Times Spotted 22 | . 13 9 Peak Tracking Total 5 | . 5 4 Tactical Retreats 1 | . . 1 Traps | -11 -10 -9 ------- Run | Yrd Mat Mat Traps Triggered . | . . . Indirectly . | . . . Trap Hack Attempts . | . . . Triggered . | . . . Disarmed . | . . . Reprogrammed . | . . . Reused . | . . . Traps Extracted . | . . . Installed . | . . . Triggered . | . . . Machines | -11 -10 -9 ---------- Run | Yrd Mat Mat Machines Disabled 1 | . . 1 Max in Single Turn 1 | . . 1 Machines Repaired . | . . . Machines Dismantled . | . . . Machines Sabotaged . | . . . Overloaded Fab Kills . | . . . Hacking | -11 -10 -9 --------- Run | Yrd Mat Mat Machines Accessed 1 | . 1 . Terminals 1 | . 1 . Fabricators . | . . . Repair Stations . | . . . Recycling Units . | . . . Scanalyzers . | . . . Garrison Access . | . . . Total Hacks 1 | . 1 . Successful . | . . . Failed 1 | . 1 . Catastrophic . | . . . Database Lockouts . | . . . Manual . | . . . Terminals 1 | . 1 . Fabricators . | . . . Repair Stations . | . . . Recycling Units . | . . . Scanalyzers . | . . . Garrison Access . | . . . Terminal Hacks . | . . . Fabricator Hacks . | . . . Repair Station Hacks . | . . . Recycling Unit Hacks . | . . . Scanalyzer . | . . . Garrison Access Hacks . | . . . Unauthorized Hacks . | . . . Terminals . | . . . Fabricators . | . . . Repair Stations . | . . . Recycling Units . | . . . Scanalyzers . | . . . Garrison Access . | . . . Data Cores Recovered . | . . . Used . | . . . Hacking Detections 1 | . 1 . Full Trace Events . | . . . Feedback Events . | . . . Feedback Blocked . | . . . Robot Schematics Acquired . | . . . Robots Built . | . . . Authchips . | . . . Time . | . . . Total Robot Build Rating . | . . . Part Schematics Acquired . | . . . Parts Built . | . . . Authchips . | . . . Time . | . . . Total Part Build Rating . | . . . Parts Repaired . | . . . Time . | . . . Parts Recycled . | . . . Recycled Matter . | . . . Retrieved Matter . | . . . Retrieved Components . | . . . Parts Scanalyzed . | . . . Part Schematics Acquired . | . . . Parts Damaged . | . . . Bothacking | -11 -10 -9 ------------ Run | Yrd Mat Mat Used RIF Installer . | . . . Robots Hacked . | . . . Non-combat . | . . . Combat . | . . . Robot Hacks Applied . | . . . Relay Couplers Released . | . . . Fabnet Peak Effective % . | . . . Robots Rewired . | . . . Allies Hacked . | . . . Hacks Repelled . | . . . Allies | -11 -10 -9 -------- Run | Yrd Mat Mat Total Allies . | . . . Largest Group . | . . . Highest-Rated Group . | . . . Highest-Rated Ally . | . . . Total Orders . | . . . Ally Attacks . | . . . Total Damage . | . . . Kills . | . . . Allies Corrupted . | . . . Allies Melted . | . . . Intel | -11 -10 -9 ------- Run | Yrd Mat Mat Active Infowar (turns) 274 | . 88 186 ECM 274 | . 88 186 Robot Analysis Total . | . . . Derelict Logs Recovered . | . . . Drone Launches . | . . . Drone Recoveries . | . . . Exploration | -11 -10 -9 ------------- Run | Yrd Mat Mat Turns Passed 632 | 57 389 186 Spaces Moved 268 | 44 174 50 Core 109 | 6 53 50 Treads . | . . . Legs 159 | 38 121 . Wheels . | . . . Hover . | . . . Flight . | . . . Fastest Speed 50 | 50 120 150 Average Speed 145 | 110 148 167 Slowest Speed 250 | 120 250 200 Overloaded Moves . | . . . Propulsion Burnouts . | . . . Robots Hopped . | . . . Potential Cave-ins . | . . . Cave-ins Triggered . | . . . Exploration Rate (%) 13 | 4 27 9 Regions Visited 2 Branch Regions . Pre-discovered Areas . | . . . Known Exits Taken . | . . . Unknown Exits Taken 2 | 1 1 . Scrap Searched . | . . . Spaces Dug . | . . . Terrain Destroyed 42 | . . 42 Melee . | . . . Projectile . | . . . AOE 42 | . . 42 Terrain Rammed . | . . . Walls Destroyed . | . . . Machines Disabled . | . . . Actions | -11 -10 -9 --------- Run | Yrd Mat Mat Total 418 | 49 237 132 Wait 67 | . 10 57 Move 266 | 43 173 50 Hop . | . . . Pick Up 6 | . 4 2 Fast Attach 9 | 6 3 . Attach 1 | . 1 . Detach . | . . . Swap 1 | . . 1 Drop 2 | . . 2 Fire 65 | . 45 20 Melee . | . . . Ram 1 | . 1 . Kick . | . . . Crush . | . . . Escape Stasis . | . . . Rewire . | . . . Trap . | . . . Miscellaneous . | . . . Route ------- -11/Scrapyard -10/Materials -9/Materials History --------- Turn | Location | Event 4 | -11/Scrapyard | Discovered new exit (range 16) 58 | -11/Scrapyard | Entered Materials 224 | -10/Materials | Lost 3 parts (1p1n1w) 283 | -10/Materials | Core integrity fell below 50% 311 | -10/Materials | Build established: Mutant 395 | -10/Materials | Discovered new exit (range 15) 397 | -10/Materials | Core integrity fell below 20% 447 | -10/Materials | Entered another Materials area 447 | -9/Materials | Evolved 2 slots: Propulsion x1, Utility x1 583 | -9/Materials | Destroyed 7 combat bots 633 | -9/Materials | Self-destructed Last Messages --------------- 00543_ C-30 ARC bursts open, deploying its payload. 00543_ G-47 Trooper unfolds itself. 00543_ G-34 Mercenary unfolds itself. 00543_ Destroyed Flight Unit. 00543_ Backup Laser I tumbles out of repair station. 00543_ G-34 Mercenary destroyed. 00557_ The unstable cave ceiling collapses. 00557_ S-10 Pest destroyed. 00557_ G-34 Mercenary destroyed. 00562_ G-47 Trooper destroyed. 00574_ The unstable cave ceiling collapses. 00575_ U-05 Engineer lays Concrete. 00594_ U-05 Engineer builds a Wall. 00598_ The unstable cave ceiling collapses. 00598_ U-05 Engineer builds a Wall. 00602_ U-05 Engineer lays Concrete. 00613_ U-05 Engineer builds a Wall. 00626_ U-05 Engineer lays Concrete. Map ----- +----------------------------------------------------+ | ?????????????????# # #??????????? | | ?????????????????# ]!! # +??????????? | | ?????????????????#[ ! + #???????????????? | | ?????????????????# !! # #???????????????? | | ?????????????????# [# #???????????????? | | ?????????????????# "T" # #####???????????? | | ?????????????????######## #???????????? | | ????????????????????????# #???????????? | | ????????????????????????# #???????????? | | ????????????????????????# #######???????????? | | ????????????????????????# #?????????????????? | | ????????????????????????# #?????????????????? | | ????????????????????????# #?????????????????? | | ????????????????????????# #?????????????????? | | ???????????????????????## ##????????????????? | | ??????????????????????## ##???????????????? | | ??????????????????????# # #???????????????? | | ??????????????????????# #???????????????? | | ??????????????????????# # #???????????????? | | ??????????????????????## ##????????##?????? | | ???????????????????????# #??????? #?????? | | ????????????"??????????# ##???? #?????? | | ????????????"" ???#### #?? +?????? | | ???????????"" ! # # ??????? | | ?????????? [ """ "?????????? | | ?????????????#+##### ## @ # """ "?????????? | | ????????????? ==# """ "?????????? | | ???????????# %%# ????????? | | ???????????# m ! ! = #####????????? | | ???????????# ["R"=u ???????????? | | ???????????? u" "%*+ "" ""?????????? | | ???????????? w %!# "Y ""?????????? | | ???????????? # "" ""?????????? | | ????????????? """"" # ?????????? | | ????????????? """"?"""" #?##??##?????????? | | ?????????????? ??????""? #????????????????? | | ???????????????????????? #????????????????? | | ???????????????????????? #????????????????? | | ????????????????????????^ ?????????????????? | | ????????????????????????? ?????????????????? | | ????????????????????????? ?????????????????? | | ????????????????????????????????????????????? | | ????????????????????????????????????????????? | | ????????????????????????????????????????????? | | ????????????????????????????????????????????? | | ????????????????????????????????????????????? | | ????????????????????????????????????????????? | | ????????????????????????????????????????????? | | ????????????????????????????????????????????? | | ????????????????????????????????????????????? | +----------------------------------------------------+ Best States ------------- Heat Dissipation 28 Energy Generation 10 Energy Capacity 125 Matter Stores 300 Matter Capacity 300 Sight Range 16 Terrain Scan Density 10 ECM Strength 1 Evasion (%) 55 Item Schematics ----------------- None Robot Schematics ------------------ None Fabricated ------------ Nothing Repaired ---------- Nothing Alien Tech Used ----------------- None Achievements -------------- None Challenges ------------ None Game ------ Seed OvertunedGuidanceBallwheel Manual? 0 Play Time 00:10:47 Cumulative 10.9 hours Start 2025.07.10 @ 06:51:33 End 2025.07.27 @ 22:18:50 Sessions 3 Manual Loads 0 Difficulty Rogue Special Mode None Game No. 16 Rogue 16 Adventurer 0 Explorer 0 Win Type - Total 0 Types 0/0/0/0/0/0/0/0/0/0 Lore% 4 Gallery% 14 Achievement% 12 Wizard Run 0 Options --------- Layout 1 ASCII 0 Keyboard 0 Movement Mouse Keybinds 0 Fullscreen 2 Font 32/SmallcapsGlow Map View 50x35 Zoom Use 0% Tactical HUD 1 Map Filters NONE Filters NONE Steam 1 RUN: a9bf4d82-3575-4d1b-97e1-199cdbaef2d6